[Event "Late-Titled-Tuesday-Blitz-April-02-2024"]
[Site "Chess.com"]
[Date "2024.04.02"]
[Round "11"]
[White "Indefatigable11"]
[Black "cthulhuuu"]
[Result "0-1"]
[WhiteElo "2229"]
[BlackElo "2458"]
[TimeControl "180+1"]
[EndTime "16:03:42 PDT"]
[Termination "cthulhuuu won on time"]

1. d4 {[%clk 0:03:00.9]} 1... Nf6 {[%clk 0:02:59.8]} 2. c4 {[%clk 0:02:59.7]}
2... e5 {[%clk 0:03:00.1]} 3. dxe5 {[%clk 0:02:58.8]} 3... Ng4 {[%clk
0:03:00.5]} 4. Nf3 {[%clk 0:02:58.1]} 4... Bc5 {[%clk 0:03:00.4]} 5. e3 {[%clk
0:02:57.6]} 5... Nc6 {[%clk 0:03:01.1]} 6. Nc3 {[%clk 0:02:54.5]} 6... O-O
{[%clk 0:03:00.8]} 7. Be2 {[%clk 0:02:49.5]} 7... Re8 {[%clk 0:03:00.7]} 8. O-O
{[%clk 0:02:40.5]} 8... a5 {[%clk 0:02:57.1]} 9. b3 {[%clk 0:02:26.2]} 9...
Ncxe5 {[%clk 0:02:56.7]} 10. Nxe5 {[%clk 0:02:25.7]} 10... Nxe5 {[%clk
0:02:57.6]} 11. Bb2 {[%clk 0:02:25.6]} 11... Ra6 {[%clk 0:02:57.8]} 12. Nd5
{[%clk 0:02:23.4]} 12... Rh6 {[%clk 0:02:53.8]} 13. f4 {[%clk 0:01:49]} 13...
Ng6 {[%clk 0:01:58.4]} 14. Qd2 {[%clk 0:01:36]} 14... c6 {[%clk 0:01:55.8]} 15.
Qc3 {[%clk 0:01:28]} 15... f6 {[%clk 0:01:42.9]} 16. Rf3 {[%clk 0:01:21.4]}
16... cxd5 {[%clk 0:01:31.1]} 17. cxd5 {[%clk 0:01:21.9]} 17... Qb6 {[%clk
0:01:02.8]} 18. Kf2 {[%clk 0:01:06.5]} 18... Nxf4 {[%clk 0:01:00.9]} 19. Rc1
{[%clk 0:01:00.1]} 19... d6 {[%clk 0:00:58.8]} 20. Bc4 {[%clk 0:00:51.8]} 20...
Rxh2 {[%clk 0:00:50.3]} 21. Rg1 {[%clk 0:00:48.6]} 21... Nh3+ {[%clk 0:00:35]}
22. Kg3 {[%clk 0:00:45.8]} 22... Nxg1 {[%clk 0:00:33.3]} 23. Kxh2 {[%clk
0:00:45.8]} 23... Nxf3+ {[%clk 0:00:32.8]} 24. gxf3 {[%clk 0:00:46.2]} 24...
Bxe3 {[%clk 0:00:31.8]} 25. Qd3 {[%clk 0:00:41.9]} 25... Bg1+ {[%clk 0:00:25.5]}
26. Kh1 {[%clk 0:00:41.6]} 26... Qf2 {[%clk 0:00:24.7]} 27. Qd2 {[%clk
0:00:13.5]} 27... Qxd2 {[%clk 0:00:23.8]} 28. Kxg1 {[%clk 0:00:11.3]} 28... Re1+
{[%clk 0:00:23]} 29. Bf1 {[%clk 0:00:11.5]} 29... Bh3 {[%clk 0:00:22.8]} 0-1

[Event "Late-Titled-Tuesday-Blitz-April-02-2024"]
[Site "Chess.com"]
[Date "2024.04.02"]
[Round "11"]
[White "Sanyura"]
[Black "emeli_chess"]
[Result "0-1"]
[WhiteElo "2604"]
[BlackElo "2461"]
[TimeControl "180+1"]
[EndTime "16:03:50 PDT"]
[Termination "emeli_chess won on time"]

1. e4 {[%clk 0:03:00.9]} 1... e5 {[%clk 0:03:00]} 2. Nf3 {[%clk 0:02:59.9]} 2...
Nc6 {[%clk 0:03:00.2]} 3. Bb5 {[%clk 0:03:00]} 3... a6 {[%clk 0:03:00]} 4. Ba4
{[%clk 0:02:59.1]} 4... Nf6 {[%clk 0:02:59.6]} 5. O-O {[%clk 0:02:59.4]} 5...
Nxe4 {[%clk 0:02:59.9]} 6. d4 {[%clk 0:02:50.5]} 6... b5 {[%clk 0:02:59.8]} 7.
Bb3 {[%clk 0:02:50.7]} 7... d5 {[%clk 0:03:00.5]} 8. dxe5 {[%clk 0:02:51.4]}
8... Be6 {[%clk 0:03:01.1]} 9. c3 {[%clk 0:02:44.4]} 9... Bc5 {[%clk 0:03:00.6]}
10. Nbd2 {[%clk 0:02:35.8]} 10... O-O {[%clk 0:02:59]} 11. Bc2 {[%clk
0:02:26.2]} 11... Nxf2 {[%clk 0:02:56.9]} 12. Rxf2 {[%clk 0:02:26.3]} 12... f6
{[%clk 0:02:56.9]} 13. exf6 {[%clk 0:02:25.8]} 13... Bxf2+ {[%clk 0:02:56.2]}
14. Kxf2 {[%clk 0:02:25.2]} 14... Qxf6 {[%clk 0:02:56.4]} 15. Nb3 {[%clk
0:02:25]} 15... Ne5 {[%clk 0:02:42.6]} 16. Nd4 {[%clk 0:01:57.1]} 16... Bg4
{[%clk 0:02:26]} 17. h3 {[%clk 0:01:44.2]} 17... Bh5 {[%clk 0:02:11.6]} 18. Nf5
{[%clk 0:00:33.2]} 18... Rad8 {[%clk 0:01:50.7]} 19. Qd4 {[%clk 0:00:32.3]}
19... Nxf3 {[%clk 0:01:18]} 20. Qxf6 {[%clk 0:00:32.1]} 20... Rxf6 {[%clk
0:01:17.4]} 21. gxf3 {[%clk 0:00:32.7]} 21... Rdf8 {[%clk 0:01:08.6]} 22. Ne7+
{[%clk 0:00:21.4]} 22... Kh8 {[%clk 0:01:08]} 23. f4 {[%clk 0:00:21.4]} 23...
Re6 {[%clk 0:00:59.5]} 24. Nxd5 {[%clk 0:00:02.7]} 24... Re2+ {[%clk 0:00:59.2]}
25. Kg3 {[%clk 0:00:03.2]} 25... Rxc2 {[%clk 0:00:59.4]} 26. Be3 {[%clk
0:00:03.7]} 26... Rxb2 {[%clk 0:00:53.9]} 27. Bd4 {[%clk 0:00:03.9]} 27... c6
{[%clk 0:00:42.8]} 28. Nc7 {[%clk 0:00:03.7]} 28... Bf7 {[%clk 0:00:38.5]} 29.
Re1 {[%clk 0:00:03.5]} 29... Rxa2 {[%clk 0:00:25.7]} 30. Re7 {[%clk 0:00:03.2]}
30... a5 {[%clk 0:00:20.9]} 31. Rd7 {[%clk 0:00:01.4]} 31... Kg8 {[%clk
0:00:17.7]} 0-1

[Event "Late-Titled-Tuesday-Blitz-April-02-2024"]
[Site "Chess.com"]
[Date "2024.04.02"]
[Round "11"]
[White "RaugintaBulba"]
[Black "Tugrik1969"]
[Result "1-0"]
[WhiteElo "2458"]
[BlackElo "2554"]
[TimeControl "180+1"]
[EndTime "16:03:55 PDT"]
[Termination "RaugintaBulba won on time"]

1. d4 {[%clk 0:02:35.1]} 1... d5 {[%clk 0:02:58.5]} 2. c4 {[%clk 0:02:32.3]}
2... e6 {[%clk 0:02:58.5]} 3. Nf3 {[%clk 0:02:32.5]} 3... Nf6 {[%clk 0:02:57.3]}
4. g3 {[%clk 0:02:32.6]} 4... dxc4 {[%clk 0:02:56.9]} 5. Qa4+ {[%clk 0:02:30.8]}
5... Nbd7 {[%clk 0:02:55.7]} 6. Qxc4 {[%clk 0:02:31.4]} 6... a6 {[%clk
0:02:56.1]} 7. Bg2 {[%clk 0:02:31.3]} 7... b5 {[%clk 0:02:56]} 8. Qc6 {[%clk
0:02:30]} 8... Rb8 {[%clk 0:02:55.4]} 9. Bf4 {[%clk 0:02:21.8]} 9... Bb7 {[%clk
0:02:39]} 10. Qxc7 {[%clk 0:01:31.7]} 10... Bb4+ {[%clk 0:02:38.5]} 11. Nbd2
{[%clk 0:01:25.4]} 11... Qxc7 {[%clk 0:02:37.5]} 12. Bxc7 {[%clk 0:01:24.1]}
12... Rc8 {[%clk 0:02:38.4]} 13. Bf4 {[%clk 0:01:20]} 13... Rc2 {[%clk
0:02:34.8]} 14. Rb1 {[%clk 0:01:18.4]} 14... O-O {[%clk 0:02:03.8]} 15. O-O
{[%clk 0:01:15.1]} 15... Ne4 {[%clk 0:01:34.1]} 16. Nxe4 {[%clk 0:00:59.2]}
16... Bxe4 {[%clk 0:01:33.7]} 17. Ne5 {[%clk 0:00:58.2]} 17... Bxg2 {[%clk
0:01:29]} 18. Kxg2 {[%clk 0:00:58.6]} 18... Nxe5 {[%clk 0:01:28]} 19. dxe5
{[%clk 0:00:57.3]} 19... Rxe2 {[%clk 0:01:27.3]} 20. Rfc1 {[%clk 0:00:54.5]}
20... Re4 {[%clk 0:01:10.7]} 21. Rc6 {[%clk 0:00:46]} 21... h6 {[%clk
0:01:04.1]} 22. Kf3 {[%clk 0:00:44.7]} 22... Rd4 {[%clk 0:00:58.1]} 23. Rxa6
{[%clk 0:00:44.4]} 23... g5 {[%clk 0:00:57.4]} 24. Be3 {[%clk 0:00:44.3]} 24...
Rd5 {[%clk 0:00:52.6]} 25. Ke4 {[%clk 0:00:39.5]} 25... Rc8 {[%clk 0:00:51.4]}
26. b3 {[%clk 0:00:33.7]} 26... Rc2 {[%clk 0:00:43.1]} 27. a4 {[%clk 0:00:32.8]}
27... bxa4 {[%clk 0:00:37.6]} 28. Rxa4 {[%clk 0:00:33.7]} 28... Bc5 {[%clk
0:00:19.3]} 29. Rc4 {[%clk 0:00:29.9]} 29... Rxf2 {[%clk 0:00:10.9]} 30. Rxc5
{[%clk 0:00:24.2]} 30... Rxc5 {[%clk 0:00:09.4]} 31. Bxc5 {[%clk 0:00:25.1]}
31... Re2+ {[%clk 0:00:08.8]} 32. Be3 {[%clk 0:00:24.8]} 32... Rxh2 {[%clk
0:00:08.4]} 33. b4 {[%clk 0:00:24.8]} 33... Rc2 {[%clk 0:00:08.8]} 34. b5 {[%clk
0:00:25.1]} 34... Rc7 {[%clk 0:00:09.4]} 35. b6 {[%clk 0:00:25.7]} 35... Rb7
{[%clk 0:00:09.9]} 36. Ra1 {[%clk 0:00:26.4]} 1-0

[Event "Late-Titled-Tuesday-Blitz-April-02-2024"]
[Site "Chess.com"]
[Date "2024.04.02"]
[Round "11"]
[White "Mikhail_Golubev"]
[Black "stasOR4ik"]
[Result "1-0"]
[WhiteElo "2638"]
[BlackElo "2456"]
[TimeControl "180+1"]
[EndTime "16:03:56 PDT"]
[Termination "Mikhail_Golubev won on time"]

1. e4 {[%clk 0:03:00.9]} 1... e6 {[%clk 0:03:00.9]} 2. d4 {[%clk 0:03:00.6]}
2... d5 {[%clk 0:03:01.8]} 3. e5 {[%clk 0:03:00.9]} 3... c5 {[%clk 0:03:01.9]}
4. c3 {[%clk 0:03:01.2]} 4... Nc6 {[%clk 0:03:01.9]} 5. Nf3 {[%clk 0:03:01.1]}
5... f6 {[%clk 0:03:01.3]} 6. Bd3 {[%clk 0:02:47]} 6... fxe5 {[%clk 0:02:57.8]}
7. dxe5 {[%clk 0:02:40.4]} 7... Qc7 {[%clk 0:02:52.7]} 8. O-O {[%clk 0:02:40.2]}
8... Bd7 {[%clk 0:02:48.6]} 9. c4 {[%clk 0:02:17.3]} 9... d4 {[%clk 0:02:44.1]}
10. Bg5 {[%clk 0:02:07]} 10... Be7 {[%clk 0:02:24.7]} 11. Bxe7 {[%clk
0:01:47.2]} 11... Ngxe7 {[%clk 0:02:25.6]} 12. Re1 {[%clk 0:01:39.7]} 12... Ng6
{[%clk 0:02:23.6]} 13. Nbd2 {[%clk 0:01:33.8]} 13... Ngxe5 {[%clk 0:02:06.9]}
14. Nxe5 {[%clk 0:01:32.6]} 14... Nxe5 {[%clk 0:02:07.8]} 15. Qh5+ {[%clk
0:01:23.1]} 15... Nf7 {[%clk 0:02:06.3]} 16. Ne4 {[%clk 0:01:22.8]} 16... Qe5
{[%clk 0:00:58]} 17. Qh4 {[%clk 0:01:06.9]} 17... g5 {[%clk 0:00:48.6]} 18. Qh5
{[%clk 0:01:06.7]} 18... Rf8 {[%clk 0:00:34.9]} 19. Ng3 {[%clk 0:00:52.4]} 19...
Qf6 {[%clk 0:00:33.8]} 20. Ne4 {[%clk 0:00:25]} 20... Qe5 {[%clk 0:00:33.7]} 21.
Nc3 {[%clk 0:00:21.5]} 21... Qxe1+ {[%clk 0:00:09.1]} 22. Rxe1 {[%clk
0:00:20.3]} 22... dxc3 {[%clk 0:00:10]} 23. bxc3 {[%clk 0:00:19.7]} 23... O-O-O
{[%clk 0:00:10.6]} 24. Qxh7 {[%clk 0:00:19.2]} 24... Bc6 {[%clk 0:00:08.8]} 25.
Be4 {[%clk 0:00:19.2]} 25... Bxe4 {[%clk 0:00:06]} 26. Qxe4 {[%clk 0:00:18.4]}
26... Rd6 {[%clk 0:00:04.7]} 27. h3 {[%clk 0:00:17.8]} 27... Rfd8 {[%clk
0:00:03.6]} 28. Kh2 {[%clk 0:00:16.9]} 28... Kc7 {[%clk 0:00:02.7]} 29. Qg6
{[%clk 0:00:15.6]} 29... R8d7 {[%clk 0:00:02.6]} 30. Rxe6 {[%clk 0:00:15.7]}
30... Rd2 {[%clk 0:00:01.9]} 31. Rf6 {[%clk 0:00:13]} 31... Ne5 {[%clk 0:00:02]}
32. Qxg5 {[%clk 0:00:13.2]} 32... Re7 {[%clk 0:00:01.8]} 33. Qxd2 {[%clk
0:00:11.4]} 1-0

[Event "Late-Titled-Tuesday-Blitz-April-02-2024"]
[Site "Chess.com"]
[Date "2024.04.02"]
[Round "11"]
[White "RodokininEV"]
[Black "AllStarShark"]
[Result "1-0"]
[WhiteElo "2690"]
[BlackElo "2522"]
[TimeControl "180+1"]
[EndTime "16:03:56 PDT"]
[Termination "RodokininEV won on time"]

1. e4 {[%clk 0:03:00.9]} 1... c5 {[%clk 0:02:59.4]} 2. Nf3 {[%clk 0:02:59.8]}
2... g6 {[%clk 0:02:59.6]} 3. d4 {[%clk 0:02:58.5]} 3... cxd4 {[%clk 0:03:00.5]}
4. Qxd4 {[%clk 0:02:59.2]} 4... Nf6 {[%clk 0:03:00.2]} 5. Nc3 {[%clk 0:02:59]}
5... Nc6 {[%clk 0:03:00.4]} 6. Qa4 {[%clk 0:02:59.2]} 6... d6 {[%clk 0:03:01]}
7. e5 {[%clk 0:02:59.6]} 7... dxe5 {[%clk 0:03:00.5]} 8. Nxe5 {[%clk 0:03:00.5]}
8... Bd7 {[%clk 0:02:59.3]} 9. Nxd7 {[%clk 0:02:59.7]} 9... Nxd7 {[%clk
0:02:59.4]} 10. Be3 {[%clk 0:02:58.2]} 10... Bg7 {[%clk 0:02:58.9]} 11. Be2
{[%clk 0:02:48.7]} 11... O-O {[%clk 0:02:57.6]} 12. O-O {[%clk 0:02:48.8]} 12...
Qc8 {[%clk 0:02:48.1]} 13. Rad1 {[%clk 0:02:46.9]} 13... a6 {[%clk 0:02:41.4]}
14. Qh4 {[%clk 0:02:41.3]} 14... Nf6 {[%clk 0:02:35.6]} 15. Bf3 {[%clk
0:02:36.4]} 15... Rd8 {[%clk 0:02:32.7]} 16. h3 {[%clk 0:02:29.3]} 16... Qc7
{[%clk 0:02:28.2]} 17. a3 {[%clk 0:02:25.6]} 17... Rxd1 {[%clk 0:02:27]} 18.
Rxd1 {[%clk 0:02:26]} 18... Rd8 {[%clk 0:02:27]} 19. Qa4 {[%clk 0:02:18.4]}
19... Rxd1+ {[%clk 0:02:24.2]} 20. Bxd1 {[%clk 0:02:19.3]} 20... e6 {[%clk
0:01:47.8]} 21. Bf3 {[%clk 0:02:17.6]} 21... Ne7 {[%clk 0:01:41.1]} 22. Qb4
{[%clk 0:02:12.8]} 22... Ned5 {[%clk 0:01:34.4]} 23. Nxd5 {[%clk 0:02:12.3]}
23... Nxd5 {[%clk 0:01:34.3]} 24. Bxd5 {[%clk 0:02:12]} 24... exd5 {[%clk
0:01:34.8]} 25. c3 {[%clk 0:02:08.6]} 25... Bf8 {[%clk 0:01:10.7]} 26. Qb3
{[%clk 0:02:05.1]} 26... Qc6 {[%clk 0:01:07.1]} 27. Bd4 {[%clk 0:02:05.3]} 27...
Bg7 {[%clk 0:01:02.9]} 28. Qd1 {[%clk 0:02:04.8]} 28... Bxd4 {[%clk 0:01:02.2]}
29. Qxd4 {[%clk 0:02:05.7]} 29... Qb5 {[%clk 0:00:59.7]} 30. b4 {[%clk
0:02:01.9]} 30... h5 {[%clk 0:00:51.7]} 31. h4 {[%clk 0:01:58.9]} 31... Qe2
{[%clk 0:00:36.7]} 32. Qxd5 {[%clk 0:01:51.8]} 32... Qe1+ {[%clk 0:00:36]} 33.
Kh2 {[%clk 0:01:52.3]} 33... Qxf2 {[%clk 0:00:35.4]} 34. Qd4 {[%clk 0:01:21]}
34... Qe1 {[%clk 0:00:20.4]} 35. c4 {[%clk 0:01:19.1]} 35... b6 {[%clk
0:00:15.1]} 36. c5 {[%clk 0:01:18.3]} 36... bxc5 {[%clk 0:00:14.8]} 37. bxc5
{[%clk 0:01:19.2]} 37... Qe6 {[%clk 0:00:10.3]} 38. a4 {[%clk 0:01:13.7]} 38...
Qc6 {[%clk 0:00:08.9]} 39. a5 {[%clk 0:01:10.2]} 39... Qb5 {[%clk 0:00:06.9]}
40. Qd6 {[%clk 0:01:06.1]} 40... Qc4 {[%clk 0:00:03]} 41. Qd8+ {[%clk
0:01:01.7]} 41... Kh7 {[%clk 0:00:03.2]} 42. Qe7 {[%clk 0:01:00.6]} 42... Qf4+
{[%clk 0:00:02]} 43. Kg1 {[%clk 0:00:54.3]} 43... Qd4+ {[%clk 0:00:01.9]} 44.
Kf1 {[%clk 0:00:53]} 44... Qd1+ {[%clk 0:00:01.9]} 45. Kf2 {[%clk 0:00:51.7]}
45... Qd2+ {[%clk 0:00:02.3]} 46. Kf3 {[%clk 0:00:50]} 46... Qxa5 {[%clk
0:00:02.2]} 47. Kf4 {[%clk 0:00:45.5]} 47... Qa4+ {[%clk 0:00:01.2]} 48. Ke5
{[%clk 0:00:44.2]} 1-0

[Event "Late-Titled-Tuesday-Blitz-April-02-2024"]
[Site "Chess.com"]
[Date "2024.04.02"]
[Round "11"]
[White "egnfanclub"]
[Black "ploxoi"]
[Result "1-0"]
[WhiteElo "2381"]
[BlackElo "2434"]
[TimeControl "180+1"]
[EndTime "16:03:57 PDT"]
[Termination "egnfanclub won by resignation"]

1. e4 {[%clk 0:03:00.9]} 1... c6 {[%clk 0:02:59.4]} 2. d4 {[%clk 0:03:00.3]}
2... d5 {[%clk 0:02:58.5]} 3. exd5 {[%clk 0:03:01.2]} 3... cxd5 {[%clk
0:02:58.8]} 4. c4 {[%clk 0:03:01.8]} 4... Nf6 {[%clk 0:02:58]} 5. Nc3 {[%clk
0:03:02.4]} 5... g6 {[%clk 0:02:58.5]} 6. cxd5 {[%clk 0:03:01]} 6... Nxd5 {[%clk
0:02:57.2]} 7. Qb3 {[%clk 0:03:01.6]} 7... Nb6 {[%clk 0:02:50.2]} 8. Nf3 {[%clk
0:02:52.1]} 8... Bg7 {[%clk 0:02:49.6]} 9. Bb5+ {[%clk 0:02:48.1]} 9... Bd7
{[%clk 0:02:48.6]} 10. O-O {[%clk 0:02:46.2]} 10... O-O {[%clk 0:02:48]} 11. Bg5
{[%clk 0:02:32.9]} 11... a6 {[%clk 0:02:39.9]} 12. Be2 {[%clk 0:02:18.9]} 12...
Be6 {[%clk 0:02:37.5]} 13. Qa3 {[%clk 0:02:10.9]} 13... Nc6 {[%clk 0:02:32.4]}
14. Rad1 {[%clk 0:01:58.3]} 14... Nd5 {[%clk 0:02:27.8]} 15. Nxd5 {[%clk
0:01:44]} 15... Bxd5 {[%clk 0:02:28.7]} 16. Ne5 {[%clk 0:01:40.4]} 16... f6
{[%clk 0:02:16.7]} 17. Nxc6 {[%clk 0:01:36.6]} 17... Bxc6 {[%clk 0:02:17.6]} 18.
Bc4+ {[%clk 0:01:25.9]} 18... Bd5 {[%clk 0:02:17.4]} 19. Qb3 {[%clk 0:01:14.3]}
19... Bxc4 {[%clk 0:02:13.7]} 20. Qxc4+ {[%clk 0:01:15.2]} 20... Kh8 {[%clk
0:02:14]} 21. Be3 {[%clk 0:01:13.6]} 21... Qd6 {[%clk 0:02:13.8]} 22. Qc5 {[%clk
0:01:09.6]} 22... Rfd8 {[%clk 0:02:11]} 23. Rc1 {[%clk 0:01:02.2]} 23... Qxc5
{[%clk 0:01:43.6]} 24. Rxc5 {[%clk 0:01:01.7]} 24... Rac8 {[%clk 0:01:43.3]} 25.
Rfc1 {[%clk 0:00:56.9]} 25... Rxc5 {[%clk 0:01:42.8]} 26. dxc5 {[%clk
0:00:57.8]} 26... Rc8 {[%clk 0:01:40.2]} 27. b4 {[%clk 0:00:55.7]} 27... e5
{[%clk 0:01:39.3]} 28. a4 {[%clk 0:00:55.2]} 28... Bf8 {[%clk 0:01:39.3]} 29. b5
{[%clk 0:00:54.6]} 29... axb5 {[%clk 0:01:39]} 30. axb5 {[%clk 0:00:55.5]} 30...
Kg7 {[%clk 0:01:38.4]} 31. c6 {[%clk 0:00:55.9]} 31... bxc6 {[%clk 0:01:38]} 32.
Rxc6 {[%clk 0:00:43.1]} 32... Rb8 {[%clk 0:01:30.1]} 33. b6 {[%clk 0:00:38.9]}
33... f5 {[%clk 0:01:20.3]} 34. g3 {[%clk 0:00:38.7]} 34... Kf7 {[%clk
0:01:17.8]} 35. Rc7+ {[%clk 0:00:38.4]} 35... Ke6 {[%clk 0:01:17.1]} 36. b7
{[%clk 0:00:37.9]} 36... Kd6 {[%clk 0:01:12.9]} 37. Rxh7 {[%clk 0:00:37.7]}
37... Kc6 {[%clk 0:01:13]} 38. Rf7 {[%clk 0:00:34.7]} 38... Bd6 {[%clk
0:01:07.9]} 39. Rf6 {[%clk 0:00:23.5]} 39... Rxb7 {[%clk 0:01:06]} 40. Rxg6
{[%clk 0:00:23.8]} 40... f4 {[%clk 0:01:06.5]} 41. gxf4 {[%clk 0:00:23]} 41...
Kd5 {[%clk 0:01:05.1]} 42. fxe5 {[%clk 0:00:22.3]} 42... Bxe5 {[%clk 0:01:05.4]}
43. h4 {[%clk 0:00:20.5]} 43... Ke4 {[%clk 0:01:04.4]} 44. Kg2 {[%clk
0:00:20.3]} 44... Rh7 {[%clk 0:01:03.1]} 45. Rg4+ {[%clk 0:00:19.7]} 45... Kf5
{[%clk 0:01:03.6]} 46. Kh3 {[%clk 0:00:19.7]} 46... Rh5 {[%clk 0:01:02.6]} 47.
Rg5+ {[%clk 0:00:19.4]} 47... Rxg5 {[%clk 0:01:02.2]} 48. hxg5 {[%clk
0:00:20.3]} 48... Kg6 {[%clk 0:01:02.4]} 49. Kg4 {[%clk 0:00:20.6]} 49... Bd6
{[%clk 0:01:01.2]} 50. f4 {[%clk 0:00:21.2]} 50... Be7 {[%clk 0:00:59.6]} 51.
Bd4 {[%clk 0:00:21.6]} 51... Bd8 {[%clk 0:00:58]} 52. f5+ {[%clk 0:00:22.2]}
52... Kf7 {[%clk 0:00:57.4]} 53. Kh5 {[%clk 0:00:22.1]} 53... Kg8 {[%clk
0:00:54.4]} 54. Kh6 {[%clk 0:00:22.1]} 54... Kf7 {[%clk 0:00:53.3]} 55. g6+
{[%clk 0:00:22.5]} 55... Kg8 {[%clk 0:00:53.7]} 56. f6 {[%clk 0:00:21.7]} 56...
Kf8 {[%clk 0:00:52.4]} 57. Kh7 {[%clk 0:00:21.3]} 1-0

[Event "Late-Titled-Tuesday-Blitz-April-02-2024"]
[Site "Chess.com"]
[Date "2024.04.02"]
[Round "11"]
[White "Savagelittlemole"]
[Black "manitodeplomo"]
[Result "0-1"]
[WhiteElo "2496"]
[BlackElo "2633"]
[TimeControl "180+1"]
[EndTime "16:04:05 PDT"]
[Termination "manitodeplomo won on time"]

1. e4 {[%clk 0:03:00.9]} 1... c5 {[%clk 0:02:50.9]} 2. Ne2 {[%clk 0:03:01.1]}
2... Nc6 {[%clk 0:02:42.1]} 3. g3 {[%clk 0:03:00.2]} 3... Nf6 {[%clk 0:02:29]}
4. Bg2 {[%clk 0:03:00.4]} 4... e5 {[%clk 0:02:23.7]} 5. O-O {[%clk 0:03:00.1]}
5... d5 {[%clk 0:02:23.6]} 6. exd5 {[%clk 0:02:56.5]} 6... Nxd5 {[%clk
0:02:24.5]} 7. Nbc3 {[%clk 0:02:51.8]} 7... Be6 {[%clk 0:02:23.6]} 8. d3 {[%clk
0:02:48.9]} 8... Be7 {[%clk 0:02:23.1]} 9. f4 {[%clk 0:02:48.4]} 9... exf4
{[%clk 0:02:00.1]} 10. Bxd5 {[%clk 0:02:47.8]} 10... Bxd5 {[%clk 0:02:00]} 11.
Nxf4 {[%clk 0:02:47.9]} 11... Be6 {[%clk 0:01:51.4]} 12. Nxe6 {[%clk 0:02:47.5]}
12... fxe6 {[%clk 0:01:52.3]} 13. Qh5+ {[%clk 0:02:22.8]} 13... g6 {[%clk
0:01:51.9]} 14. Qe2 {[%clk 0:02:21.4]} 14... Qd7 {[%clk 0:01:39.4]} 15. Be3
{[%clk 0:01:58.5]} 15... O-O-O {[%clk 0:01:35]} 16. Ne4 {[%clk 0:01:57]} 16...
b6 {[%clk 0:01:33.4]} 17. a4 {[%clk 0:01:45]} 17... Rhf8 {[%clk 0:01:30.6]} 18.
b4 {[%clk 0:01:27.8]} 18... cxb4 {[%clk 0:01:13.3]} 19. Kh1 {[%clk 0:01:27]}
19... Qd5 {[%clk 0:01:11.5]} 20. Qg2 {[%clk 0:01:12]} 20... Rxf1+ {[%clk
0:01:09.3]} 21. Rxf1 {[%clk 0:01:11.5]} 21... Rf8 {[%clk 0:01:08.5]} 22. Rxf8+
{[%clk 0:01:07]} 22... Bxf8 {[%clk 0:01:08.3]} 23. Qf3 {[%clk 0:01:06.8]} 23...
Be7 {[%clk 0:01:06.7]} 24. Qf7 {[%clk 0:01:04.2]} 24... Qa2 {[%clk 0:00:55.6]}
25. Qe8+ {[%clk 0:00:55.3]} 25... Kc7 {[%clk 0:00:55.4]} 26. Bf4+ {[%clk
0:00:28.8]} 26... e5 {[%clk 0:00:55.3]} 27. Bxe5+ {[%clk 0:00:25.3]} 27... Nxe5
{[%clk 0:00:56.2]} 28. Qxe7+ {[%clk 0:00:25.4]} 28... Nd7 {[%clk 0:00:54.4]} 29.
Qd6+ {[%clk 0:00:20.7]} 29... Kc8 {[%clk 0:00:53.6]} 30. Qc6+ {[%clk 0:00:16]}
30... Kd8 {[%clk 0:00:53.9]} 31. Nd6 {[%clk 0:00:13.6]} 31... Qe6 {[%clk
0:00:45]} 32. d4 {[%clk 0:00:05.6]} 32... Ke7 {[%clk 0:00:43.5]} 33. Nc8+ {[%clk
0:00:05]} 33... Kf6 {[%clk 0:00:43.3]} 34. Qf3+ {[%clk 0:00:04.3]} 34... Qf5
{[%clk 0:00:41.3]} 35. Qxf5+ {[%clk 0:00:02.7]} 35... Kxf5 {[%clk 0:00:38.9]}
36. Nxa7 {[%clk 0:00:03.4]} 36... Ke4 {[%clk 0:00:37.9]} 37. Nc6 {[%clk
0:00:02.8]} 37... Kd5 {[%clk 0:00:37.1]} 38. Nxb4+ {[%clk 0:00:03.1]} 38... Kxd4
{[%clk 0:00:37.1]} 39. a5 {[%clk 0:00:01.8]} 39... bxa5 {[%clk 0:00:32.4]} 40.
Nc6+ {[%clk 0:00:01.9]} 40... Kc3 {[%clk 0:00:32.8]} 41. Nxa5 {[%clk 0:00:02.8]}
41... Kxc2 {[%clk 0:00:33.5]} 42. Kg2 {[%clk 0:00:01.4]} 42... Kd3 {[%clk
0:00:33.9]} 43. Kf3 {[%clk 0:00:01.7]} 43... Kd4 {[%clk 0:00:31.1]} 44. Kf4
{[%clk 0:00:01.5]} 44... h6 {[%clk 0:00:30.6]} 0-1

[Event "Late-Titled-Tuesday-Blitz-April-02-2024"]
[Site "Chess.com"]
[Date "2024.04.02"]
[Round "11"]
[White "PhileKhoob"]
[Black "Cambek64"]
[Result "0-1"]
[WhiteElo "2289"]
[BlackElo "2508"]
[TimeControl "180+1"]
[EndTime "16:04:06 PDT"]
[Termination "Cambek64 won on time"]

1. Nf3 {[%clk 0:03:00.9]} 1... d5 {[%clk 0:02:58.8]} 2. g3 {[%clk 0:02:58]} 2...
c6 {[%clk 0:02:58.6]} 3. Bg2 {[%clk 0:02:55.3]} 3... Bg4 {[%clk 0:02:57.7]} 4.
Ne5 {[%clk 0:02:54.4]} 4... Bf5 {[%clk 0:02:57.2]} 5. c4 {[%clk 0:02:54.3]} 5...
dxc4 {[%clk 0:02:55.4]} 6. O-O {[%clk 0:02:47.3]} 6... e6 {[%clk 0:02:55.4]} 7.
Nc3 {[%clk 0:02:43.3]} 7... Nf6 {[%clk 0:02:53.9]} 8. Nxc4 {[%clk 0:02:43.3]}
8... Be7 {[%clk 0:02:48.7]} 9. d4 {[%clk 0:02:43.1]} 9... O-O {[%clk 0:02:48.5]}
10. b3 {[%clk 0:02:43.3]} 10... Nbd7 {[%clk 0:02:47.6]} 11. Bb2 {[%clk
0:02:42.9]} 11... h6 {[%clk 0:02:47.5]} 12. e4 {[%clk 0:02:38.6]} 12... Bh7
{[%clk 0:02:46.7]} 13. Qe2 {[%clk 0:02:37.6]} 13... a5 {[%clk 0:02:45.7]} 14.
Rfd1 {[%clk 0:02:33.8]} 14... Nb6 {[%clk 0:02:44.1]} 15. a3 {[%clk 0:02:26.8]}
15... Re8 {[%clk 0:02:43.3]} 16. Rac1 {[%clk 0:02:25.8]} 16... Nfd7 {[%clk
0:02:36.3]} 17. Ne3 {[%clk 0:02:23.5]} 17... a4 {[%clk 0:02:35.6]} 18. b4 {[%clk
0:02:23]} 18... Qb8 {[%clk 0:02:33.6]} 19. Kh1 {[%clk 0:02:18.2]} 19... Nf6
{[%clk 0:02:32.3]} 20. f4 {[%clk 0:02:13.6]} 20... Qa7 {[%clk 0:02:31.9]} 21.
Qf1 {[%clk 0:02:05.9]} 21... Rad8 {[%clk 0:02:30.1]} 22. f5 {[%clk 0:01:55.4]}
22... exf5 {[%clk 0:02:29.3]} 23. Nxf5 {[%clk 0:01:48.3]} 23... Bxf5 {[%clk
0:02:26.3]} 24. Qxf5 {[%clk 0:01:48.8]} 24... Nc4 {[%clk 0:02:26]} 25. e5 {[%clk
0:01:30.9]} 25... Nxb2 {[%clk 0:02:25.1]} 26. exf6 {[%clk 0:01:28.6]} 26... Bxf6
{[%clk 0:02:25]} 27. Re1 {[%clk 0:01:18.2]} 27... Rxe1+ {[%clk 0:02:22.4]} 28.
Rxe1 {[%clk 0:01:17.3]} 28... Qxd4 {[%clk 0:02:20.3]} 29. Ne4 {[%clk 0:01:16]}
29... Nd3 {[%clk 0:02:06.7]} 30. Rd1 {[%clk 0:01:07.1]} 30... Be7 {[%clk
0:01:45.5]} 31. Rf1 {[%clk 0:00:59.3]} 31... Rf8 {[%clk 0:01:38.2]} 32. Nd2
{[%clk 0:00:45.7]} 32... Ne5 {[%clk 0:01:25.7]} 33. Ne4 {[%clk 0:00:39]} 33...
Nc4 {[%clk 0:01:10]} 34. Re1 {[%clk 0:00:07.2]} 34... Nxa3 {[%clk 0:01:03.6]}
35. Nf2 {[%clk 0:00:05.6]} 35... Bxb4 {[%clk 0:01:00.5]} 36. Ng4 {[%clk
0:00:01.7]} 36... Bxe1 {[%clk 0:00:59.1]} 37. Nxh6+ {[%clk 0:00:01.5]} 37...
gxh6 {[%clk 0:00:58]} 38. Be4 {[%clk 0:00:01.9]} 38... Re8 {[%clk 0:00:44.2]}
39. Qh7+ {[%clk 0:00:02]} 39... Kf8 {[%clk 0:00:44.6]} 40. Qxh6+ {[%clk
0:00:02.5]} 40... Ke7 {[%clk 0:00:45.2]} 41. Qh4+ {[%clk 0:00:01.6]} 41... Kd6
{[%clk 0:00:42.3]} 42. Qf4+ {[%clk 0:00:01.4]} 42... Qe5 {[%clk 0:00:40.9]} 0-1